[Event "71st RUS-ch Superfinal Women 2021"]
[Site "Ufa"]
[Date "2021.10.14"]
[Round "6.3"]
[White "Gunina, Valentina"]
[Black "Pogonina, Natalija"]
[Result "1/2-1/2"]
[ECO "D37"]
[WhiteElo "2462"]
[BlackElo "2467"]
[Annotator "ChessBase"]
[PlyCount "159"]
[EventDate "2021.10.09"]
[EventType "tourn"]
[EventCountry "RUS"]
[SourceTitle "playchess.com"]
[Source "ChessBase"]
[SourceQuality "1"]
[TimeControl "40/5400+30:1800+30"]

1. d4 {[%emt 0:00:05]} Nf6 {[%emt 0:00:06]} 2. c4 {[%emt 0:00:08]} e6 {[%emt 0:
00:08]} 3. Nf3 {[%emt 0:00:08]} d5 {[%emt 0:00:14]} 4. Nc3 {[%emt 0:00:08]} Be7
{[%emt 0:00:17]} 5. Bf4 {[%emt 0:00:14]} O-O {[%emt 0:02:09]} 6. e3 {[%emt 0:
00:35]} Nbd7 {[%emt 0:01:12]} 7. c5 {[%emt 0:00:11]} Nh5 {[%emt 0:00:35]} 8.
Bd3 {[%emt 0:00:13]} Nxf4 {[%emt 0:00:40]} 9. exf4 {[%emt 0:00:05]} b6 {
[%emt 0:00:16]} 10. b4 {[%emt 0:00:27]} a5 {[%emt 0:00:18]} 11. a3 {[%emt 0:00:
12]} c6 {[%emt 0:01:01]} 12. O-O {[%emt 0:00:28]} Qc7 {[%emt 0:00:17]} 13. g3 {
[%emt 0:00:06]} Ba6 {[%emt 0:00:10]} 14. Bxa6 {[%emt 0:00:09]} Rxa6 {[%emt 0:
00:05]} 15. Qe2 {[%emt 0:00:05]} Raa8 {[%emt 0:00:39]} 16. Na4 {[%emt 0:02:44]}
b5 {[%emt 0:14:25]} 17. Nb2 {[%emt 0:00:42]} Rfb8 {[%emt 0:02:31]} 18. Nd3 {
[%emt 0:00:47]} Ra7 {[%emt 0:01:08]} 19. Rfe1 {[%emt 0:14:20]} Bf6 {[%emt 0:15:
17]} 20. Nde5 {[%emt 0:01:48]} Nf8 {[%emt 0:17:48]} 21. Ra2 {[%emt 0:04:12]}
Ng6 {[%emt 0:05:53]} 22. h4 {[%emt 0:06:25]} Bxe5 {[%emt 0:07:58]} 23. dxe5 {
[%emt 0:04:32]} Rba8 {[%emt 0:00:19]} 24. Rb2 {[%emt 0:01:00]} axb4 {[%emt 0:
00:50]} 25. axb4 {[%emt 0:00:05]} Ne7 {[%emt 0:00:32]} 26. Nd4 {[%emt 0:00:31]}
Ra1 {[%emt 0:01:23]} 27. Rxa1 {[%emt 0:04:38]} Rxa1+ {[%emt 0:00:05]} 28. Kg2 {
[%emt 0:00:03]} Ra4 {[%emt 0:01:06]} 29. h5 {[%emt 0:05:24]} Nf5 {[%emt 0:06:
33]} 30. Nf3 {[%emt 0:01:18]} Qd8 {[%emt 0:05:20]} 31. Qd3 {[%emt 0:01:58]} h6
{[%emt 0:00:44]} 32. Kh3 {[%emt 0:03:30]} Ra1 {[%emt 0:04:35]} 33. Rb1 {
[%emt 0:06:23]} Rxb1 {[%emt 0:04:05]} 34. Qxb1 {[%emt 0:00:06]} Qa8 {[%emt 0:
00:03]} 35. g4 {[%emt 0:12:18]} Qa3 {[%emt 0:00:11]} 36. Kg2 {[%emt 0:00:08]}
Ne7 {[%emt 0:00:12]} 37. f5 {[%emt 0:06:38]} Qc3 {[%emt 0:02:15]} 38. Kg3 {
[%emt 0:08:20]} Kh8 {[%emt 0:01:23]} 39. fxe6 {[%emt 0:09:09]} fxe6 {[%emt 0:
00:04]} 40. Qa2 {[%emt 0:00:00]} Kg8 {[%emt 0:00:00]} 41. Qd2 {[%emt 0:25:56]}
Qxd2 {[%emt 0:18:49]} 42. Nxd2 {[%emt 0:00:13]} d4 {[%emt 0:00:09]} 43. Kf4 {
[%emt 0:00:06]} Nd5+ {[%emt 0:02:54]} 44. Ke4 {[%emt 0:00:04]} Nxb4 {[%emt 0:
00:04]} 45. Kxd4 {[%emt 0:00:03]} Kf7 {[%emt 0:01:26]} 46. Nb3 {[%emt 0:01:36]}
Nd5 {[%emt 0:07:28]} 47. Ke4 {[%emt 0:00:08]} Ke7 {[%emt 0:02:50]} 48. f4 {
[%emt 0:01:23]} Nc3+ {[%emt 0:00:23]} 49. Kf3 {[%emt 0:00:25]} Kf7 {[%emt 0:05:
21]} 50. f5 {[%emt 0:01:33]} Nd5 {[%emt 0:00:05]} 51. Nd4 {[%emt 0:00:28]} exf5
{[%emt 0:00:02]} 52. gxf5 {[%emt 0:00:08]} Nb4 {[%emt 0:00:41]} 53. Ke4 {
[%emt 0:02:40]} Ke7 {[%emt 0:00:56]} 54. Ne6 {[%emt 0:00:26]} Kf7 {[%emt 0:00:
06]} 55. Kd4 {[%emt 0:00:57]} Kg8 {[%emt 0:01:30]} 56. Nc7 {[%emt 0:02:15]} Kf7
{[%emt 0:00:21]} 57. Kc3 {[%emt 0:01:29]} Na2+ {[%emt 0:00:05]} 58. Kd2 {
[%emt 0:01:59]} Nb4 {[%emt 0:00:17]} 59. Ne6 {[%emt 0:03:01]} Kg8 {[%emt 0:00:
48]} 60. Nf4 {[%emt 0:01:29]} Na6 {[%emt 0:02:14]} 61. Nd3 {[%emt 0:00:01]} Kf7
{[%emt 0:00:45]} 62. Kc3 {[%emt 0:00:04]} Ke7 {[%emt 0:00:21]} 63. Kd4 {
[%emt 0:01:37]} Kf7 {[%emt 0:00:04]} 64. e6+ {[%emt 0:00:59]} Kf6 {[%emt 0:00:
39]} 65. Ke4 {[%emt 0:01:12]} b4 {[%emt 0:00:16]} 66. Kd4 {[%emt 0:02:01]} b3 {
[%emt 0:00:09]} 67. Kc3 {[%emt 0:00:55]} Kxf5 {[%emt 0:00:54]} 68. e7 {[%emt 0:
00:05]} Nc7 {[%emt 0:00:03]} 69. Nb4 {[%emt 0:00:18]} Ke6 {[%emt 0:01:18]} 70.
Nxc6 {[%emt 0:00:41]} Kd7 {[%emt 0:00:27]} 71. Nd4 {[%emt 0:00:11]} Kxe7 {
[%emt 0:00:37]} 72. Kxb3 {[%emt 0:00:04]} Kf6 {[%emt 0:00:52]} 73. Kc4 {
[%emt 0:00:03]} g6 {[%emt 0:00:16]} 74. hxg6 {[%emt 0:02:00]} Kxg6 {[%emt 0:00:
05]} 75. Nb5 {[%emt 0:00:43]} Na6 {[%emt 0:00:52]} 76. c6 {[%emt 0:00:11]} h5 {
[%emt 0:00:07]} 77. Nc3 {[%emt 0:00:30]} Nc7 {[%emt 0:01:14]} 78. Nd5 {[%emt 0:
00:13]} Ne8 {[%emt 0:00:20]} 79. Nf4+ {[%emt 0:00:57]} Kg5 {[%emt 0:00:23]} 80.
Nxh5 {[%emt 0:00:12]} 1/2-1/2

[Event "71st RUS-ch Superfinal Women 2021"]
[Site "Ufa"]
[Date "2021.10.14"]
[Round "6.4"]
[White "Shuvalova, Polina"]
[Black "Bivol, Alina"]
[Result "1-0"]
[ECO "C10"]
[WhiteElo "2509"]
[BlackElo "2392"]
[Annotator "ChessBase"]
[PlyCount "95"]
[EventDate "2021.10.09"]
[EventType "tourn"]
[EventCountry "RUS"]
[SourceTitle "playchess.com"]
[Source "ChessBase"]
[SourceQuality "1"]
[TimeControl "40/5400+30:1800+30"]

1. e4 {[%emt 0:00:03]} e6 {[%emt 0:00:12]} 2. d4 {[%emt 0:00:06]} d5 {[%emt 0:
00:05]} 3. Nc3 {[%emt 0:00:04]} dxe4 {[%emt 0:00:09]} 4. Nxe4 {[%emt 0:00:08]}
Nd7 {[%emt 0:00:15]} 5. Nf3 {[%emt 0:00:08]} Ngf6 {[%emt 0:00:06]} 6. Nxf6+ {
[%emt 0:00:04]} Nxf6 {[%emt 0:00:10]} 7. Be3 {[%emt 0:00:10]} Bd6 {[%emt 0:00:
35]} 8. Bd3 {[%emt 0:00:53]} O-O {[%emt 0:04:43]} 9. Qe2 {[%emt 0:00:11]} b6 {
[%emt 0:01:18]} 10. O-O-O {[%emt 0:01:05]} Bb7 {[%emt 0:00:46]} 11. Bg5 {
[%emt 0:02:14]} Be7 {[%emt 0:06:11]} 12. Rhe1 {[%emt 0:08:50]} c5 {[%emt 0:18:
01]} 13. dxc5 {[%emt 0:15:30]} Qc8 {[%emt 0:00:30]} 14. Ne5 {[%emt 0:11:37]}
Qxc5 {[%emt 0:07:53]} 15. Kb1 {[%emt 0:02:00]} Rad8 {[%emt 0:04:25]} 16. a3 {
[%emt 0:04:22]} a6 {[%emt 0:14:02]} 17. Bd2 {[%emt 0:07:01]} b5 {[%emt 0:05:46]
} 18. f4 {[%emt 0:00:29]} Qb6 {[%emt 0:04:29]} 19. g4 {[%emt 0:15:31]} Nd7 {
[%emt 0:16:12]} 20. Nxd7 {[%emt 0:07:00]} Rxd7 {[%emt 0:00:06]} 21. Ba5 {
[%emt 0:06:32]} Qxa5 {[%emt 0:05:19]} 22. Bxh7+ {[%emt 0:00:06]} Kxh7 {[%emt 0:
00:04]} 23. Rxd7 {[%emt 0:00:05]} Bh4 {[%emt 0:00:16]} 24. Red1 {[%emt 0:03:07]
} Bc6 {[%emt 0:03:10]} 25. R7d6 {[%emt 0:10:05]} Bd5 {[%emt 0:00:18]} 26. g5 {
[%emt 0:00:06]} Kg8 {[%emt 0:00:41]} 27. Qh5 {[%emt 0:02:23]} Rc8 {[%emt 0:06:
06]} 28. Rd7 {[%emt 0:01:29]} g6 {[%emt 0:00:58]} 29. Qxh4 {[%emt 0:00:04]} b4
{[%emt 0:00:30]} 30. R7xd5 {[%emt 0:00:59]} exd5 {[%emt 0:00:07]} 31. axb4 {
[%emt 0:01:22]} Qxb4 {[%emt 0:00:19]} 32. Rxd5 {[%emt 0:01:02]} a5 {[%emt 0:01:
54]} 33. Rd3 {[%emt 0:01:05]} Qc5 {[%emt 0:00:31]} 34. Rd2 {[%emt 0:00:30]} Rb8
{[%emt 0:00:26]} 35. Qg3 {[%emt 0:00:51]} a4 {[%emt 0:00:22]} 36. Qd3 {[%emt 0:
00:32]} a3 {[%emt 0:00:48]} 37. b3 {[%emt 0:00:13]} a2+ {[%emt 0:00:36]} 38.
Kxa2 {[%emt 0:00:19]} Ra8+ {[%emt 0:00:16]} 39. Kb1 {[%emt 0:00:05]} Qg1+ {
[%emt 0:00:49]} 40. Rd1 {[%emt 0:00:00]} Qxh2 {[%emt 0:00:00]} 41. Qe4 {
[%emt 0:03:55]} Rc8 {[%emt 0:01:15]} 42. Rd4 {[%emt 0:00:28]} Qf2 {[%emt 0:03:
02]} 43. Rc4 {[%emt 0:01:39]} Rd8 {[%emt 0:00:15]} 44. Kb2 {[%emt 0:00:09]} Qa7
{[%emt 0:01:31]} 45. Qe5 {[%emt 0:00:07]} Qg1 {[%emt 0:01:36]} 46. Qa5 {
[%emt 0:02:31]} Rd1 {[%emt 0:00:58]} 47. Rc8+ {[%emt 0:00:27]} Kh7 {[%emt 0:00:
09]} 48. Qe5 {[%emt 0:00:32]} 1-0

[Event "71st RUS-ch Superfinal Women 2021"]
[Site "Ufa"]
[Date "2021.10.14"]
[Round "6.5"]
[White "Girya, Olga"]
[Black "Garifullina, Leya"]
[Result "1/2-1/2"]
[ECO "E41"]
[WhiteElo "2410"]
[BlackElo "2409"]
[Annotator "ChessBase"]
[PlyCount "88"]
[EventDate "2021.10.09"]
[EventType "tourn"]
[EventCountry "RUS"]
[SourceTitle "playchess.com"]
[Source "ChessBase"]
[SourceQuality "1"]
[TimeControl "40/5400+30:1800+30"]

1. d4 {[%emt 0:00:05]} Nf6 {[%emt 0:00:08]} 2. c4 {[%emt 0:00:05]} e6 {[%emt 0:
00:05]} 3. Nc3 {[%emt 0:00:10]} Bb4 {[%emt 0:00:11]} 4. e3 {[%emt 0:00:06]} c5
{[%emt 0:00:13]} 5. Bd3 {[%emt 0:00:20]} Nc6 {[%emt 0:00:07]} 6. dxc5 {[%emt 0:
01:01]} O-O {[%emt 0:01:34]} 7. Nf3 {[%emt 0:00:16]} Bxc5 {[%emt 0:01:02]} 8.
O-O {[%emt 0:00:15]} d5 {[%emt 0:00:19]} 9. cxd5 {[%emt 0:00:21]} exd5 {
[%emt 0:04:03]} 10. h3 {[%emt 0:00:11]} a6 {[%emt 0:01:33]} 11. b3 {[%emt 0:05:
07]} d4 {[%emt 0:07:01]} 12. Na4 {[%emt 0:01:05]} Ba7 {[%emt 0:00:06]} 13. exd4
{[%emt 0:02:37]} b5 {[%emt 0:02:02]} 14. Nc5 {[%emt 0:11:04]} Nxd4 {[%emt 0:02:
02]} 15. b4 {[%emt 0:08:35]} Ne6 {[%emt 0:07:01]} 16. Nxe6 {[%emt 0:20:08]}
Bxe6 {[%emt 0:00:44]} 17. Bb2 {[%emt 0:00:53]} Nd5 {[%emt 0:09:38]} 18. Qd2 {
[%emt 0:21:47]} h6 {[%emt 0:12:20]} 19. Be4 {[%emt 0:01:29]} Rc8 {[%emt 0:00:
31]} 20. Rfd1 {[%emt 0:04:06]} Nf6 {[%emt 0:02:32]} 21. Qxd8 {[%emt 0:02:35]}
Rfxd8 {[%emt 0:00:35]} 22. Rxd8+ {[%emt 0:00:52]} Rxd8 {[%emt 0:00:05]} 23. Bc2
{[%emt 0:00:16]} Rc8 {[%emt 0:01:35]} 24. Bd1 {[%emt 0:11:29]} Rc4 {[%emt 0:07:
26]} 25. Bxf6 {[%emt 0:01:07]} gxf6 {[%emt 0:00:08]} 26. a3 {[%emt 0:00:14]}
Rc3 {[%emt 0:00:56]} 27. a4 {[%emt 0:01:17]} bxa4 {[%emt 0:02:04]} 28. Bxa4 {
[%emt 0:00:06]} Bb6 {[%emt 0:01:31]} 29. Bd1 {[%emt 0:02:13]} Rc4 {[%emt 0:01:
09]} 30. Be2 {[%emt 0:03:18]} Rxb4 {[%emt 0:00:08]} 31. Bxa6 {[%emt 0:00:19]}
Bd5 {[%emt 0:01:19]} 32. Rd1 {[%emt 0:00:58]} Bxf3 33. gxf3 {[%emt 0:00:04]}
Rb2 {[%emt 0:00:34]} 34. Rf1 {[%emt 0:00:13]} Kg7 {[%emt 0:00:11]} 35. Bd3 {
[%emt 0:00:12]} Rd2 {[%emt 0:00:24]} 36. Be4 {[%emt 0:00:19]} h5 {[%emt 0:00:
14]} 37. Kg2 {[%emt 0:00:33]} Rb2 {[%emt 0:02:09]} 38. Kg3 {[%emt 0:01:05]} Kh6
{[%emt 0:00:19]} 39. Bd5 {[%emt 0:01:09]} Kg6 {[%emt 0:00:14]} 40. f4 {[%emt 0:
00:00]} f5 {[%emt 0:00:00]} 41. Bf3 {[%emt 0:03:06]} h4+ {[%emt 0:02:05]} 42.
Kg2 {[%emt 0:00:04]} Bc7 {[%emt 0:00:09]} 43. Re1 {[%emt 0:00:20]} Bxf4 {
[%emt 0:00:08]} 44. Re2 {[%emt 0:00:03]} Rxe2 {[%emt 0:00:09]} 1/2-1/2

[Event "71st RUS-ch Superfinal Women 2021"]
[Site "Ufa"]
[Date "2021.10.14"]
[Round "6.6"]
[White "Guseva, Marina"]
[Black "Kashlinskaya, Alina"]
[Result "0-1"]
[ECO "E11"]
[WhiteElo "2394"]
[BlackElo "2493"]
[Annotator "ChessBase"]
[PlyCount "54"]
[EventDate "2021.10.09"]
[EventType "tourn"]
[EventCountry "RUS"]
[SourceTitle "playchess.com"]
[Source "ChessBase"]
[SourceQuality "1"]
[TimeControl "40/5400+30:1800+30"]

1. d4 {[%emt 0:00:02]} Nf6 {[%emt 0:00:08]} 2. c4 {[%emt 0:00:03]} e6 {[%emt 0:
00:05]} 3. Nf3 {[%emt 0:00:03]} Bb4+ {[%emt 0:00:25]} 4. Nbd2 {[%emt 0:00:05]}
O-O {[%emt 0:00:44]} 5. a3 {[%emt 0:00:03]} Be7 {[%emt 0:00:11]} 6. e4 {
[%emt 0:00:05]} d6 {[%emt 0:00:13]} 7. Be2 {[%emt 0:00:04]} c5 {[%emt 0:00:18]}
8. d5 {[%emt 0:03:57]} e5 {[%emt 0:00:23]} 9. b4 {[%emt 0:02:20]} Nbd7 {
[%emt 0:03:15]} 10. O-O {[%emt 0:00:40]} a5 {[%emt 0:06:50]} 11. bxa5 {[%emt 0:
09:13]} Rxa5 {[%emt 0:01:04]} 12. Qc2 {[%emt 0:01:58]} Ne8 {[%emt 0:09:04]} 13.
Nb3 {[%emt 0:04:41]} Ra6 {[%emt 0:00:49]} 14. a4 {[%emt 0:01:19]} g6 {[%emt 0:
01:42]} 15. Bh6 {[%emt 0:08:06]} Ng7 {[%emt 0:00:26]} 16. Bd3 {[%emt 0:00:05]}
Nf6 {[%emt 0:00:31]} 17. a5 {[%emt 0:13:19]} Ng4 {[%emt 0:04:50]} 18. Bd2 {
[%emt 0:00:29]} f5 {[%emt 0:00:18]} 19. exf5 {[%emt 0:10:13]} gxf5 {[%emt 0:03:
38]} 20. Ne1 {[%emt 0:00:06]} e4 {[%emt 0:15:19]} 21. Be2 {[%emt 0:00:05]} Bf6
{[%emt 0:00:16]} 22. Ra3 {[%emt 0:07:10]} Qe7 {[%emt 0:01:00]} 23. Qc1 {
[%emt 0:14:43]} Be5 {[%emt 0:08:11]} 24. g3 {[%emt 0:06:08]} f4 {[%emt 0:13:48]
} 25. gxf4 {[%emt 0:00:40]} Nxh2 {[%emt 0:01:57]} 26. Kxh2 {[%emt 0:01:14]}
Rxf4 {[%emt 0:03:34]} 27. Kg1 {[%emt 0:01:56]} Qg5+ {[%emt 0:00:43]} 0-1

[Event "71st RUS-ch Superfinal Women 2021"]
[Site "Ufa"]
[Date "2021.10.16"]
[Round "7.1"]
[White "Kashlinskaya, Alina"]
[Black "Ovod, Evgenija"]
[Result "1/2-1/2"]
[ECO "D35"]
[WhiteElo "2493"]
[BlackElo "2331"]
[Annotator "ChessBase"]
[PlyCount "107"]
[EventDate "2021.10.09"]
[EventType "tourn"]
[EventCountry "RUS"]
[SourceTitle "playchess.com"]
[Source "ChessBase"]
[SourceQuality "1"]
[TimeControl "40/5400+30:1800+30"]

1. d4 {[%emt 0:00:03]} d5 {[%emt 0:00:04]} 2. c4 {[%emt 0:00:09]} e6 {[%emt 0:
00:04]} 3. Nc3 {[%emt 0:00:06]} Nf6 {[%emt 0:00:04]} 4. cxd5 {[%emt 0:00:14]}
exd5 {[%emt 0:00:06]} 5. Bg5 {[%emt 0:00:11]} Be7 {[%emt 0:00:07]} 6. e3 {
[%emt 0:01:21]} Nbd7 {[%emt 0:00:06]} 7. Bd3 {[%emt 0:00:39]} Nf8 {[%emt 0:00:
07]} 8. Qc2 {[%emt 0:05:28]} Ne6 {[%emt 0:00:06]} 9. Bxf6 {[%emt 0:04:19]} Bxf6
{[%emt 0:00:04]} 10. O-O-O {[%emt 0:00:20]} g6 {[%emt 0:00:09]} 11. f4 {
[%emt 0:04:37]} O-O {[%emt 0:00:09]} 12. Nf3 {[%emt 0:06:15]} c5 {[%emt 0:21:
30]} 13. f5 {[%emt 0:01:59]} cxd4 {[%emt 0:01:12]} 14. Ne2 {[%emt 0:06:53]} Ng7
{[%emt 0:08:41]} 15. fxg6 {[%emt 0:04:52]} Bg4 {[%emt 0:18:09]} 16. gxh7+ {
[%emt 0:24:28]} Kh8 {[%emt 0:00:03]} 17. exd4 {[%emt 0:01:05]} Rc8 {[%emt 0:01:
42]} 18. Nc3 {[%emt 0:00:05]} Bxf3 {[%emt 0:00:43]} 19. gxf3 {[%emt 0:00:04]}
Bxd4 {[%emt 0:00:06]} 20. Kb1 {[%emt 0:02:26]} Qf6 {[%emt 0:10:34]} 21. Rc1 {
[%emt 0:05:37]} Bxc3 {[%emt 0:07:16]} 22. bxc3 {[%emt 0:00:05]} Rc6 {[%emt 0:
00:10]} 23. Rhg1 {[%emt 0:13:09]} Rfc8 {[%emt 0:00:35]} 24. Qe2 {[%emt 0:06:08]
} Rxc3 {[%emt 0:13:02]} 25. Rxc3 {[%emt 0:00:04]} Qxc3 {[%emt 0:01:23]} 26. Bc2
{[%emt 0:00:09]} f5 {[%emt 0:08:06]} 27. Qg2 {[%emt 0:02:47]} a5 {[%emt 0:02:
26]} 28. Bb3 {[%emt 0:04:05]} Re8 {[%emt 0:04:19]} 29. Qf2 {[%emt 0:01:45]} d4
{[%emt 0:01:45]} 30. Qh4 {[%emt 0:03:11]} Qd3+ {[%emt 0:01:31]} 31. Bc2 {
[%emt 0:00:31]} Qb5+ {[%emt 0:00:19]} 32. Bb3 {[%emt 0:01:22]} Qd3+ {[%emt 0:
00:36]} 33. Bc2 {[%emt 0:00:01]} Qe3 {[%emt 0:00:20]} 34. Rd1 {[%emt 0:01:02]}
Qxf3 {[%emt 0:00:45]} 35. Rxd4 {[%emt 0:00:36]} b5 {[%emt 0:00:32]} 36. Qg3 {
[%emt 0:01:27]} Qxg3 {[%emt 0:00:44]} 37. hxg3 {[%emt 0:00:01]} Re5 {[%emt 0:
00:27]} 38. Rh4 {[%emt 0:00:32]} Re1+ {[%emt 0:00:47]} 39. Kb2 {[%emt 0:00:01]}
Rg1 {[%emt 0:00:09]} 40. Rh3 {[%emt 0:00:00]} Rg2 {[%emt 0:00:00]} 41. Kc1 {
[%emt 0:12:16]} Rf2 {[%emt 0:05:46]} 42. Rh6 {[%emt 0:03:14]} Rg2 {[%emt 0:02:
50]} 43. Rb6 {[%emt 0:02:49]} b4 {[%emt 0:00:41]} 44. Rb5 {[%emt 0:00:13]} Rxg3
{[%emt 0:00:23]} 45. Rxa5 {[%emt 0:00:17]} Ra3 {[%emt 0:06:36]} 46. Rxa3 {
[%emt 0:01:58]} bxa3 {[%emt 0:00:02]} 47. Bd3 {[%emt 0:04:02]} Kxh7 {[%emt 0:
00:06]} 48. Kc2 {[%emt 0:00:03]} Kg6 {[%emt 0:00:07]} 49. Kb3 {[%emt 0:00:03]}
Kf6 {[%emt 0:00:03]} 50. Kxa3 {[%emt 0:00:14]} Ke5 {[%emt 0:00:46]} 51. Kb4 {
[%emt 0:00:05]} Kd6 {[%emt 0:00:03]} 52. Kb5 {[%emt 0:00:14]} Kc7 {[%emt 0:00:
04]} 53. a4 {[%emt 0:03:02]} Kb7 {[%emt 0:00:18]} 54. a5 {[%emt 0:00:49]}
1/2-1/2

[Event "71st RUS-ch Superfinal Women 2021"]
[Site "Ufa"]
[Date "2021.10.16"]
[Round "7.2"]
[White "Garifullina, Leya"]
[Black "Guseva, Marina"]
[Result "1-0"]
[ECO "B12"]
[WhiteElo "2409"]
[BlackElo "2394"]
[Annotator "ChessBase"]
[PlyCount "88"]
[EventDate "2021.10.09"]
[EventType "tourn"]
[EventCountry "RUS"]
[SourceTitle "playchess.com"]
[Source "ChessBase"]
[SourceQuality "1"]
[TimeControl "40/5400+30:1800+30"]

1. e4 {[%emt 0:00:03]} c6 {[%emt 0:00:02]} 2. d4 {[%emt 0:00:08]} d5 {[%emt 0:
00:03]} 3. e5 {[%emt 0:00:15]} Bf5 {[%emt 0:00:04]} 4. Nf3 {[%emt 0:00:06]} e6
{[%emt 0:00:03]} 5. Be2 {[%emt 0:00:06]} Ne7 {[%emt 0:00:04]} 6. O-O {[%emt 0:
00:07]} c5 {[%emt 0:00:02]} 7. c4 {[%emt 0:01:55]} Nbc6 {[%emt 0:00:06]} 8.
dxc5 {[%emt 0:01:54]} d4 {[%emt 0:00:04]} 9. Bd3 {[%emt 0:01:19]} Ng6 {[%emt 0:
00:06]} 10. Bxf5 {[%emt 0:04:00]} exf5 {[%emt 0:00:04]} 11. b4 {[%emt 0:05:23]}
Nxb4 {[%emt 0:01:10]} 12. Nbd2 {[%emt 0:01:45]} d3 {[%emt 0:28:27]} 13. Nb3 {
[%emt 0:04:33]} Be7 {[%emt 0:13:37]} 14. Bb2 {[%emt 0:07:42]} O-O {[%emt 0:04:
26]} 15. Nfd4 {[%emt 0:09:32]} Nxe5 {[%emt 0:20:03]} 16. Nxf5 {[%emt 0:01:13]}
Bf6 {[%emt 0:00:15]} 17. Nd6 {[%emt 0:02:26]} b6 {[%emt 0:00:23]} 18. Ne4 {
[%emt 0:01:49]} Nf3+ {[%emt 0:05:23]} 19. Qxf3 {[%emt 0:00:06]} Bxb2 {[%emt 0:
00:02]} 20. Rad1 {[%emt 0:02:48]} f5 {[%emt 0:08:55]} 21. Nd6 {[%emt 0:04:34]}
Qd7 {[%emt 0:02:04]} 22. Rb1 {[%emt 0:03:31]} Be5 {[%emt 0:05:56]} 23. a3 {
[%emt 0:04:28]} bxc5 {[%emt 0:00:04]} 24. Nb7 {[%emt 0:01:12]} Na6 {[%emt 0:04:
18]} 25. Rfd1 {[%emt 0:05:23]} Rab8 {[%emt 0:03:10]} 26. N3a5 {[%emt 0:02:55]}
Qc7 {[%emt 0:00:34]} 27. Qc6 {[%emt 0:03:06]} Bxh2+ {[%emt 0:02:46]} 28. Kf1 {
[%emt 0:00:30]} Rf6 {[%emt 0:00:16]} 29. Qd5+ {[%emt 0:00:15]} Kh8 {[%emt 0:01:
00]} 30. Rxd3 {[%emt 0:01:23]} Be5 {[%emt 0:00:52]} 31. Rf3 {[%emt 0:02:21]}
Rd6 {[%emt 0:00:29]} 32. Qxe5 {[%emt 0:01:10]} Rd1+ {[%emt 0:00:06]} 33. Rxd1 {
[%emt 0:00:04]} Qxe5 {[%emt 0:00:02]} 34. Nc6 {[%emt 0:00:04]} Qe4 {[%emt 0:01:
27]} 35. Nxb8 {[%emt 0:00:05]} h6 {[%emt 0:00:56]} 36. Nxa6 {[%emt 0:01:30]}
Qxc4+ {[%emt 0:00:05]} 37. Kg1 {[%emt 0:00:14]} Qxa6 {[%emt 0:00:04]} 38. Nxc5
{[%emt 0:00:05]} Qe2 {[%emt 0:01:03]} 39. Rd8+ {[%emt 0:01:21]} Kh7 {[%emt 0:
00:03]} 40. Rxf5 {[%emt 0:00:00]} Qc2 {[%emt 0:00:00]} 41. Nd3 {[%emt 0:03:19]}
Qd1+ {[%emt 0:00:11]} 42. Kh2 {[%emt 0:00:06]} Qa4 {[%emt 0:00:02]} 43. Nf4 {
[%emt 0:00:37]} Qc2 {[%emt 0:02:03]} 44. Rff8 {[%emt 0:00:34]} Qb2 1-0

[Event "71st RUS-ch Superfinal Women 2021"]
[Site "Ufa"]
[Date "2021.10.16"]
[Round "7.3"]
[White "Bivol, Alina"]
[Black "Girya, Olga"]
[Result "0-1"]
[ECO "C81"]
[WhiteElo "2392"]
[BlackElo "2410"]
[Annotator "ChessBase"]
[PlyCount "78"]
[EventDate "2021.10.09"]
[EventType "tourn"]
[EventCountry "RUS"]
[SourceTitle "playchess.com"]
[Source "ChessBase"]
[SourceQuality "1"]
[TimeControl "40/5400+30:1800+30"]

1. e4 {[%emt 0:00:02]} e5 {[%emt 0:00:03]} 2. Nf3 {[%emt 0:00:07]} Nc6 {
[%emt 0:00:04]} 3. Bb5 {[%emt 0:00:40]} a6 {[%emt 0:00:06]} 4. Ba4 {[%emt 0:00:
05]} Nf6 {[%emt 0:00:04]} 5. O-O {[%emt 0:00:06]} Nxe4 {[%emt 0:00:05]} 6. d4 {
[%emt 0:02:24]} b5 {[%emt 0:00:08]} 7. Bb3 {[%emt 0:00:11]} d5 {[%emt 0:00:04]}
8. dxe5 {[%emt 0:00:21]} Be6 {[%emt 0:00:04]} 9. Qe2 {[%emt 0:00:37]} Nc5 {
[%emt 0:00:19]} 10. Rd1 {[%emt 0:00:31]} Nxb3 {[%emt 0:00:19]} 11. cxb3 {
[%emt 0:00:22]} Be7 {[%emt 0:00:30]} 12. Nc3 {[%emt 0:01:02]} O-O {[%emt 0:03:
02]} 13. Be3 {[%emt 0:00:25]} Qd7 {[%emt 0:03:06]} 14. Rd2 {[%emt 0:00:13]}
Rad8 {[%emt 0:01:19]} 15. Rad1 {[%emt 0:00:52]} Qc8 {[%emt 0:01:15]} 16. a3 {
[%emt 0:00:33]} d4 {[%emt 0:06:22]} 17. Nxd4 {[%emt 0:00:27]} Nxd4 {[%emt 0:00:
19]} 18. Rxd4 {[%emt 0:01:07]} Bxb3 {[%emt 0:06:33]} 19. Rxd8 {[%emt 0:14:41]}
Rxd8 {[%emt 0:00:16]} 20. Rd2 {[%emt 0:05:06]} c5 {[%emt 0:23:47]} 21. Ne4 {
[%emt 0:07:19]} Rxd2 {[%emt 0:00:56]} 22. Bxd2 {[%emt 0:05:53]} Qf5 {[%emt 0:
08:52]} 23. Qe3 {[%emt 0:15:40]} Bd5 {[%emt 0:07:37]} 24. Nc3 {[%emt 0:14:30]}
Bc6 {[%emt 0:01:44]} 25. Ne2 {[%emt 0:00:27]} Qc2 {[%emt 0:03:26]} 26. h4 {
[%emt 0:15:03]} Qxb2 {[%emt 0:01:24]} 27. Ng3 {[%emt 0:02:45]} Qa2 {[%emt 0:05:
05]} 28. Nh5 {[%emt 0:08:29]} Qb1+ {[%emt 0:03:00]} 29. Bc1 {[%emt 0:01:53]}
Qe4 {[%emt 0:00:37]} 30. Qg3 {[%emt 0:00:45]} Qg6 {[%emt 0:01:04]} 31. Nf4 {
[%emt 0:02:31]} Qxg3 {[%emt 0:00:36]} 32. fxg3 {[%emt 0:00:04]} c4 {[%emt 0:00:
36]} 33. Kf2 {[%emt 0:00:17]} Bc5+ {[%emt 0:00:42]} 34. Ke2 {[%emt 0:00:05]} a5
{[%emt 0:05:15]} 35. g4 {[%emt 0:01:31]} b4 {[%emt 0:00:44]} 36. axb4 {[%emt 0:
00:04]} axb4 {[%emt 0:00:03]} 37. Kd2 {[%emt 0:01:14]} Bd4 {[%emt 0:00:49]} 38.
e6 {[%emt 0:00:11]} fxe6 {[%emt 0:00:29]} 39. Nxe6 {[%emt 0:00:08]} Bc3+ {
[%emt 0:00:14]} 0-1